[Event "Mitropa Cup Women 2024"]
[Site "Apolda"]
[Date "2024.02.16"]
[Round "2.2"]
[White "Schneider, Jana"]
[Black "Hapala, Elisabeth"]
[Result "1-0"]
[ECO "B42"]
[WhiteElo "2331"]
[BlackElo "2001"]
[Annotator "TA"]
[PlyCount "69"]
[EventDate "2024.02.15"]
[EventType "team-tourn"]
[EventCountry "GER"]
[SourceTitle "playchess.com"]
[Source "ChessBase"]
[SourceQuality "1"]
[WhiteTeam "Germany"]
[BlackTeam "Austria"]
[WhiteTeamCountry "GER"]
[BlackTeamCountry "AUT"]
[TimeControl "40/5400+30:1800+30"]

{[%evp 13,69,24,41,25,22,26,29,29,24,15,25,11,17,0,4,-15,20,24,19,27,30,25,44,51,54,77,84,77,67,60,166,168,167,162,272,267,275,267,283,214,214,187,387,386,426,336,346,359,405,331,385,379,393,363,319,325,404,381]} 1. e4 {[%emt 0:00:04]} c5 {[%emt 0:00:03]} 2. Nf3 {[%emt 0:00:08]} e6 {[%emt 0:00:04]} 3. d4 {[%emt 0:00:06]} cxd4 {[%emt 0:00:04]} 4. Nxd4 {[%emt 0:00:07]} a6 {[%emt 0:00:07]} 5. Bd3 {[%emt 0:00:12]} Bc5 {[%emt 0:00:06]} 6. Nb3 {[%emt 0:00:09]} Ba7 {[%emt 0:00:05]} 7. O-O {[%emt 0:00:12]} Ne7 {[%emt 0:00:20]} 8. c4 {[%emt 0:00:20]} Nbc6 {[%emt 0:00:34]} 9. Nc3 {[%emt 0:00:35]} O-O {[%emt 0:01:06]} 10. Kh1 {[%emt 0:00:45] White has an edge.} e5 {[%emt 0:18:20]} 11. f4 {[%emt 0:02:03]} exf4 {[%emt 0:04:27]} 12. Bxf4 {[%emt 0:00:27]} d6 {[%emt 0:00:14]} 13. Nd5 {[%emt 0:15:11]} Ng6 {[%emt 0:05:51]} 14. Be3 {[%emt 0:01:41]} Nce5 {[%emt 0:06:30]} 15. Bxa7 {[%emt 0:02:48]} Rxa7 {[%emt 0:00:05]} 16. Nd4 {[%emt 0:02:28]} Be6 {[%emt 0:20:10]} 17. b3 {[%emt 0:07:34]} Bxd5 {[%emt 0:12:37]} 18. exd5 {[%emt 0:00:17]} Nxd3 {[%emt 0:00:32]} 19. Qxd3 {[%emt 0:00:09]} Ra8 {[%emt 0:00:46]} 20. Qg3 {[%emt 0:09:26] White is much more active.} Qh4 {[%emt 0:04:16]} 21. Qc3 {[%emt 0:04:55]} Ne5 {[%emt 0:02:48]} (21... Qg4 $1 $14) 22. Nf5 $36 {[%emt 0:00:33][%csl LRd6,LRh4][%mdl 2048] White is on the roll.} Qf6 {[%emt 0:01:59]} 23. Qb4 {[%emt 0:02:17][%csl LRb7,LRd6]} Rfd8 {[%emt 0:11:32]} (23... b5 {was called for.} 24. Nxd6 (24. cxb5 axb5 25. Qxb5 Kh8 $16) 24... Nd3 25. Rxf6 Nxb4) 24. Qxb7 {[%emt 0:00:41] [#] Black must now prevent Ne7+.} Kh8 {[%emt 0:00:17]} 25. Rae1 {[%emt 0:05:35][%cal Ba1e1,Be1e3,Be3g3,Bg3g4][%mdl 32]} Nd3 {[%emt 0:04:30]} 26. Re3 {[%emt 0:07:13]} Nf2+ {[%emt 0:02:24]} 27. Kg1 $1 {[%emt 0:00:04]} Ng4 {[%emt 0:00:04]} (27... Qxf5 28. Rf3 (28. Rxf2 Qb1+ 29. Rf1 Qxa2 $18) 28... Qe5 29. Qxf7 (29. Kxf2 Qd4+ 30. Kg3 Qe5+ 31. Kf2 Qd4+ 32. Kg3 Qe5+ 33. Kh3 Qh5+ 34. Kg3 Qe5+ $11) (29. R1xf2 f6 $16) 29... Qd4) 28. Rg3 {[%emt 0:07:07]} g6 {[%emt 0:03:38]} 29. Rxg4 {[%emt 0:02:53][%cal Of5d6] [#] Strongly threatening Nxd6!} gxf5 {[%emt 0:00:04]} 30. Rgf4 {[%emt 0:00:24]} Rg8 {[%emt 0:00:26]} 31. Qb6 {[%emt 0:01:36]} (31. Rxf5 Rxg2+ 32. Kxg2 Qg6+ 33. Kh1 Rg8 $11) 31... Rae8 {[%emt 0:01:21]} 32. Qf2 {[%emt 0:01:55]} ({And not} 32. Qxa6 Re2 33. g3 (33. Rxf5 $2 {is a self mate.} Rgxg2+ 34. Kh1 Rxh2+ 35. Kg1 Reg2#) (33. R4f2 Rxf2 34. Rxf2 Qa1+ 35. Rf1 Qd4+ 36. Kh1 Qe4 $11) 33... Qc3 $11) 32... Rg5 {[%emt 0:00:33]} 33. Rxf5 {[%emt 0:00:37]} Rxf5 {[%emt 0:00:26]} 34. Qxf5 {[%emt 0:00:02]} Qd4+ {[%emt 0:00:08]} 35. Qf2 {[%emt 0:00:17] Weighted Error Value: White=0.18 (very precise) /Black=0.30.  Mistake:       	---       	Black=3      Inaccurate:     	---       	Black=1      OK:         	White=8     	Black=9      Best:        	White=2     	Black=1      Strong:       	White=1     	---} 1-0

[Event "Mitropa Cup Women 2024"]
[Site "Apolda"]
[Date "2024.02.16"]
[Round "2.3"]
[White "Mayrhuber, Nikola"]
[Black "Klek, Hanna Marie"]
[Result "0-1"]
[ECO "E04"]
[WhiteElo "2009"]
[BlackElo "2284"]
[Annotator "NA RC"]
[PlyCount "52"]
[EventDate "2024.02.15"]
[EventType "team-tourn"]
[EventCountry "GER"]
[SourceTitle "playchess.com"]
[Source "ChessBase"]
[SourceQuality "1"]
[WhiteTeam "Austria"]
[BlackTeam "Germany"]
[WhiteTeamCountry "AUT"]
[BlackTeamCountry "GER"]
[TimeControl "40/5400+30:1800+30"]

1. d4 {[%emt 0:00:03]} Nf6 {[%emt 0:00:06]} 2. c4 {[%emt 0:00:06]} e6 {[%emt 0:00:05]} 3. Nf3 {[%emt 0:00:36]} d5 {[%emt 0:00:08]} 4. g3 {[%emt 0:00:14]} dxc4 {[%emt 0:00:16]} 5. Bg2 {[%emt 0:00:12]} c6 {[%emt 0:00:09]} 6. O-O {[%emt 0:11:15]} b5 {[%emt 0:00:27]} 7. Ne5 {[%emt 0:06:35]} Bb7 {[%emt 0:00:18]} 8. b3 {[%emt 0:09:38]} cxb3 {[%emt 0:00:11]} 9. Qxb3 {[%emt 0:00:19]} Qxd4 {[%emt 0:02:46]} 10. Bb2 {[%emt 0:00:06]} Qb6 {[%emt 0:06:18]} 11. Nc3 {[%emt 0:07:18]} Be7 {[%emt 0:10:37]} 12. Bh3 {[%emt 0:14:58]} Na6 {[%emt 0:15:01]} 13. Rad1 {[%emt 0:16:17]} Nc5 {[%emt 0:02:05]} 14. Qc2 {[%emt 0:00:05]} O-O {[%emt 0:03:18]} 15. Rd4 {[%emt 0:01:46]} Rad8 {[%emt 0:06:42]} 16. Rh4 {[%emt 0:01:06]} h6 {[%emt 0:11:30]} 17. Bg2 {[%emt 0:17:22]} Ncd7 {[%emt 0:05:22]} 18. Ne4 {[%emt 0:06:53]} Nxe5 {[%emt 0:08:18]} 19. Bxe5 {[%emt 0:00:01]} Nd7 {[%emt 0:01:30]} 20. Bd4 {[%emt 0:03:31]} c5 {[%emt 0:02:48]} 21. Nxc5 {[%emt 0:00:26]} Nxc5 {[%emt 0:01:12]} 22. Bxc5 {[%emt 0:00:08]} Bxc5 {[%emt 0:00:29]} 23. Bxb7 {[%emt 0:00:37]} Be7 {[%emt 0:02:26]} 24. Be4 {[%emt 0:02:22]} Bxh4 {[%emt 0:00:16]} 25. gxh4 {[%emt 0:00:03]} Rd4 {[%emt 0:00:29]} 26. e3 {[%emt 0:00:44]} Rc4 {[%emt 0:00:08]} 0-1

[Event "Mitropa Cup Women 2024"]
[Site "Apolda"]
[Date "2024.02.16"]
[Round "2.4"]
[White "Schulze, Lara"]
[Black "Katter, Katharina"]
[Result "1-0"]
[ECO "B51"]
[WhiteElo "2285"]
[BlackElo "1831"]
[Annotator "NA RC"]
[PlyCount "65"]
[EventDate "2024.02.15"]
[EventType "team-tourn"]
[EventCountry "GER"]
[SourceTitle "playchess.com"]
[Source "ChessBase"]
[SourceQuality "1"]
[WhiteTeam "Germany"]
[BlackTeam "Austria"]
[WhiteTeamCountry "GER"]
[BlackTeamCountry "AUT"]
[TimeControl "40/5400+30:1800+30"]

1. e4 {[%emt 0:00:02]} c5 {[%emt 0:00:14]} 2. Nf3 {[%emt 0:00:05]} d6 {[%emt 0:00:29]} 3. Bb5+ {[%emt 0:00:07]} Nd7 {[%emt 0:00:23]} 4. c4 {[%emt 0:00:12]} Ngf6 {[%emt 0:00:47]} 5. O-O {[%emt 0:00:29]} g6 {[%emt 0:07:09]} 6. d3 {[%emt 0:01:24]} Bg7 {[%emt 0:01:24]} 7. h3 {[%emt 0:00:07]} O-O {[%emt 0:00:45]} 8. Ba4 {[%emt 0:00:07]} Ne8 {[%emt 0:03:56]} 9. Nc3 {[%emt 0:04:15]} Nc7 {[%emt 0:01:01]} 10. Bxd7 {[%emt 0:05:15]} Bxd7 {[%emt 0:02:23]} 11. d4 {[%emt 0:01:39]} cxd4 {[%emt 0:03:56]} 12. Nxd4 {[%emt 0:00:28]} Ne6 {[%emt 0:00:39]} 13. Be3 {[%emt 0:03:48]} Rc8 {[%emt 0:11:36]} 14. b3 {[%emt 0:04:09]} a6 {[%emt 0:08:24]} 15. Rc1 {[%emt 0:07:33]} Re8 {[%emt 0:14:29]} 16. Qd3 {[%emt 0:15:39]} Qa5 {[%emt 0:08:17]} 17. Nxe6 {[%emt 0:08:51]} Bxe6 {[%emt 0:00:45]} 18. Bd2 {[%emt 0:03:19]} Qc5 {[%emt 0:04:27]} 19. Kh1 {[%emt 0:02:32]} Bd7 {[%emt 0:09:25]} 20. Nd5 {[%emt 0:06:19]} b5 {[%emt 0:07:05]} 21. cxb5 {[%emt 0:09:37]} Qxb5 {[%emt 0:00:46]} 22. Qxb5 {[%emt 0:09:51]} axb5 {[%emt 0:00:29]} 23. Nb6 {[%emt 0:02:22]} Rxc1 {[%emt 0:02:54]} 24. Rxc1 {[%emt 0:00:03]} Be6 {[%emt 0:00:19]} 25. Be3 {[%emt 0:00:06]} h5 {[%emt 0:02:57]} 26. Rc7 {[%emt 0:01:06]} Bf6 {[%emt 0:02:04]} 27. a4 {[%emt 0:05:14]} Bxb3 {[%emt 0:02:00]} 28. a5 {[%emt 0:01:58]} d5 {[%emt 0:03:46]} 29. a6 {[%emt 0:04:58]} d4 {[%emt 0:01:12]} 30. Bd2 {[%emt 0:01:17]} Be5 {[%emt 0:00:23]} 31. Rc8 {[%emt 0:02:31]} Rxc8 {[%emt 0:00:39]} 32. Nxc8 {[%emt 0:00:02]} Bb8 {[%emt 0:00:48]} 33. Nxe7+ {[%emt 0:00:08]} 1-0

[Event "Mitropa Cup Women 2024"]
[Site "Apolda"]
[Date "2024.02.16"]
[Round "2.5"]
[White "Terbe, Julianna"]
[Black "Novosadova, Kristyna"]
[Result "1-0"]
[ECO "D85"]
[WhiteElo "2315"]
[BlackElo "2188"]
[Annotator "TA"]
[PlyCount "91"]
[EventDate "2024.02.15"]
[EventType "team-tourn"]
[EventCountry "GER"]
[SourceTitle "playchess.com"]
[Source "ChessBase"]
[SourceQuality "1"]
[WhiteTeam "Hungary"]
[BlackTeam "Czech Republic"]
[WhiteTeamCountry "HUN"]
[BlackTeamCountry "CZE"]
[TimeControl "40/5400+30:1800+30"]

{[%evp 15,91,-4,3,-14,-6,-27,0,0,0,0,7,-4,0,0,0,-4,4,0,-8,-40,-39,-45,-36,-54,216,208,205,194,847,422,448,422,235,86,141,115,168,148,159,169,157,154,300,290,290,266,226,262,755,652,5537,7747,5443,5363,5110,5093,29988,29989,29989,29989,29990,1873,1651,1659,1431,990,990,843,841,810,4714,1873,29971,29973,29973,29974,12684,12684]} 1. d4 {[%emt 0:00:03]} Nf6 {[%emt 0:00:47]} 2. c4 {[%emt 0:00:11]} g6 {[%emt 0:00:14]} 3. Nc3 {[%emt 0:00:06]} d5 {[%emt 0:00:56]} 4. cxd5 {[%emt 0:00:10]} Nxd5 {[%emt 0:00:08]} 5. e4 {[%emt 0:00:05]} Nxc3 {[%emt 0:00:12]} 6. bxc3 {[%emt 0:00:05]} Bg7 {[%emt 0:00:11]} 7. Nf3 {[%emt 0:00:10]} c5 {[%emt 0:00:15]} 8. Bb5+ {[%emt 0:00:06]} Nc6 {[%emt 0:09:41]} 9. Rb1 {[%emt 0:00:18]} (9. dxc5 Bxc3+ 10. Bd2 Bxa1 11. Qxa1 f6 $15) 9... O-O {[%emt 0:03:55]} 10. d5 {[%emt 0:00:07]} a6 {[%emt 0:04:04]} 11. Be2 {[%emt 0:07:32] The position is equal.} Ne5 {[%emt 0:05:26]} 12. Nxe5 {[%emt 0:08:59]} Bxe5 {[%emt 0:00:06]} 13. O-O {[%emt 0:03:19]} Qc7 {[%emt 0:07:27]} 14. Bh6 {[%emt 0:05:42]} Rd8 {[%emt 0:03:41]} 15. Qd2 {[%emt 0:00:40]} Bxh2+ {[%emt 0:00:43]} 16. Kh1 {[%emt 0:00:06] Hoping for g3.} Be5 {[%emt 0:02:23]} 17. c4 {[%emt 0:08:03]} Bd7 {[%emt 0:15:59]} 18. Rb3 {[%emt 0:08:58] [#]} b5 $1 {[%emt 0:06:14]} 19. f4 {[%emt 0:02:46][%cal Bf2f4,Bf4e5,Be5d6][%mdl 32]} bxc4 $2 {[%emt 0:17:54][%mdl 8192]} (19... Bd4 $15 {stays ahead.}) 20. fxe5 $18 {[%emt 0:21:18]} cxb3 {[%emt 0:00:06]} 21. Qf4 {[%emt 0:00:30]} Be8 {[%emt 0:02:44]} (21... bxa2 22. Qxf7+ Kh8 23. Bg7#) (21... f6 $2 22. d6 Be6 23. dxc7 $18) (21... Rf8) 22. d6 {[%emt 0:06:23]} (22. Bc4 $142 {White threatens d6 and mate.} Kh8 23. axb3) 22... Rxd6 {[%emt 0:09:36]} (22... exd6 23. Qf6 dxe5 24. Qg7#) 23. exd6 {[%emt 0:00:19]} Qxd6 {[%emt 0:00:05] [#]} 24. Qf3 {[%emt 0:11:19]} (24. axb3 Qxf4 25. Bxf4 (25. Rxf4 Bb5 $16) 25... Bb5) (24. e5 $1 $18 {[%cal Re5d6] is the precise move to win.} Qd4 25. axb3 Qxf4 26. Rxf4) 24... bxa2 {[%emt 0:03:52]} (24... b2 $142) 25. Bc4 $1 $16 {[%emt 0:02:46][%csl LRa2,LRf7][%cal Rc4f7] Dancing on a razor blade. A strong pair of Bishops.} a1=Q {[%emt 0:05:11]} 26. Rxa1 $40 {[%emt 0:09:03][%cal Bf1a1,Ba1a6,Ba6g6][%mdl 160] White goes for the king.} (26. Bxf7+ Bxf7 27. Qxf7+ (27. Rxa1 $2 {is the wrong capture.} a5 $19) 27... Kh8 28. Rxa1 Qf6 29. Qxf6+ exf6) 26... Qf6 {[%emt 0:00:26]} 27. Qxf6 {[%emt 0:00:30]} exf6 {[%emt 0:00:02][%cal Be7f6,Bf6f5][%mdl 32]} 28. Bd5 {[%emt 0:00:36] Prevents Bc6. White has more active pieces.} ({Don't do} 28. Rxa6 Rxa6 29. Bxa6 Bc6) 28... Rd8 {[%emt 0:00:23]} (28... Ra7 $16 29. Rf1 Rc7 30. Rxf6 c4 31. Rxa6 Rc8) 29. Rxa6 {[%emt 0:00:25]} f5 {[%emt 0:01:15]} 30. Bg5 {[%emt 0:00:06]} Rb8 {[%emt 0:00:59]} 31. e5 {[%emt 0:00:51]} Rb1+ $2 {[%emt 0:00:24]} (31... Bd7 32. Rd6 Be8) 32. Kh2 {[%emt 0:00:05] Threatens to win with Ra8.} h6 {[%emt 0:00:35]} 33. Rxg6+ {[%emt 0:00:47]} Kf8 {[%emt 0:00:33]} 34. Rxh6 {[%emt 0:00:05]} Kg7 {[%emt 0:00:25]} 35. Rh3 {[%emt 0:01:43] Intending Bf6+ and mate.} Re1 {[%emt 0:00:13]} 36. Bf6+ {[%emt 0:00:07]} Kg6 {[%emt 0:00:15]} 37. Rg3+ {[%emt 0:00:46]} Kh6 {[%emt 0:00:22]} 38. Bf3 {[%emt 0:00:27]} (38. Rg8 $142 f4 39. Rxe8 Rxe5 40. Bxe5 f6 41. Bxf4+ Kh7 42. Rg8 c4 43. Bxc4) 38... f4 {[%emt 0:00:35]} 39. Rg8 {[%emt 0:02:06][%cal Of3g4]} Bd7 {[%emt 0:00:18]} 40. Rh8+ {[%emt 0:00:11]} Kg6 {[%emt 0:00:09]} 41. Bh5+ {[%emt 0:31:28]} Kf5 {[%emt 0:30:29]} 42. Bxf7 {[%emt 0:00:28] Rh5+ is the strong threat.} f3 {[%emt 0:00:53]} 43. gxf3 {[%emt 0:00:00] Threatening mate with Kg3.} Kf4 {[%emt 0:00:00]} 44. Rh4+ {[%emt 0:00:00]} Kxf3 {[%emt 0:00:00]} 45. Bd5+ {[%emt 0:00:00]} Ke2 {[%emt 0:00:00]} 46. Re4+ {[%emt 0:00:00] Weighted Error Value: White=0.43/Black=0.55.  Loses game:     	---       	Black=1      Mistake:       	White=2     	Black=5      Inaccurate:     	White=1     	Black=2      OK:         	White=8     	Black=8      Best:        	White=4     	Black=3      Brilliant:      	---       	Black=1} 1-0

[Event "Mitropa Cup Women 2024"]
[Site "Apolda"]
[Date "2024.02.16"]
[Round "2.6"]
[White "Koubova, Anna Marie"]
[Black "Terbe, Zsuzsanna"]
[Result "1-0"]
[ECO "B31"]
[WhiteElo "2100"]
[BlackElo "2170"]
[Annotator "NA RC"]
[PlyCount "93"]
[EventDate "2024.02.15"]
[EventType "team-tourn"]
[EventCountry "GER"]
[SourceTitle "playchess.com"]
[Source "ChessBase"]
[SourceQuality "1"]
[WhiteTeam "Czech Republic"]
[BlackTeam "Hungary"]
[WhiteTeamCountry "CZE"]
[BlackTeamCountry "HUN"]
[TimeControl "40/5400+30:1800+30"]

1. e4 {[%emt 0:00:08]} c5 {[%emt 0:01:08]} 2. Nf3 {[%emt 0:00:12]} Nc6 {[%emt 0:00:08]} 3. Bb5 {[%emt 0:00:11]} g6 {[%emt 0:00:26]} 4. O-O {[%emt 0:00:15]} Bg7 {[%emt 0:00:24]} 5. c3 {[%emt 0:00:17]} Nf6 {[%emt 0:01:01]} 6. Qa4 {[%emt 0:00:15]} O-O {[%emt 0:07:24]} 7. d4 {[%emt 0:00:51]} d6 {[%emt 0:05:46]} 8. e5 {[%emt 0:03:44]} Nd7 {[%emt 0:05:31]} 9. Bxc6 {[%emt 0:03:41]} Nb6 {[%emt 0:02:20]} 10. Qa5 {[%emt 0:00:46]} bxc6 {[%emt 0:00:25]} 11. dxc5 {[%emt 0:00:28]} dxc5 {[%emt 0:02:19]} 12. Qxc5 {[%emt 0:04:34]} Qc7 {[%emt 0:09:43]} 13. Bg5 {[%emt 0:07:24]} Re8 {[%emt 0:01:29]} 14. Re1 {[%emt 0:02:54]} Rb8 {[%emt 0:06:06]} 15. b3 {[%emt 0:07:34]} Nd5 {[%emt 0:06:19]} 16. Nbd2 {[%emt 0:05:20]} h6 {[%emt 0:12:55]} 17. Bh4 {[%emt 0:02:15]} Nf4 {[%emt 0:00:19]} 18. Nd4 {[%emt 0:13:09]} Rb6 {[%emt 0:05:08]} 19. Bg3 {[%emt 0:05:01]} Ne6 {[%emt 0:05:02]} 20. Nxe6 {[%emt 0:08:15]} Bxe6 {[%emt 0:00:06]} 21. c4 {[%emt 0:00:22]} Rd8 {[%emt 0:04:02]} 22. Nf3 {[%emt 0:01:05]} Qd7 {[%emt 0:01:05]} 23. Re2 {[%emt 0:03:46]} Qe8 {[%emt 0:05:11]} 24. Nd4 {[%emt 0:01:01]} Rb7 {[%emt 0:01:04]} 25. Qxc6 {[%emt 0:04:30]} Qxc6 {[%emt 0:00:20]} 26. Nxc6 {[%emt 0:00:05]} Rd3 {[%emt 0:00:22]} 27. f3 {[%emt 0:00:57]} Kf8 {[%emt 0:01:57]} 28. Be1 {[%emt 0:05:12]} f6 {[%emt 0:02:21]} 29. Rc1 {[%emt 0:03:57]} Bf5 {[%emt 0:02:22]} 30. Nb4 {[%emt 0:07:41]} Rd8 {[%emt 0:01:34]} 31. c5 {[%emt 0:00:17]} fxe5 {[%emt 0:02:48]} 32. c6 {[%emt 0:00:55]} Rc7 {[%emt 0:00:05]} 33. Bg3 {[%emt 0:09:00]} a5 {[%emt 0:03:00]} 34. Na6 {[%emt 0:00:05]} Ra7 {[%emt 0:01:12]} 35. Nc5 {[%emt 0:00:17]} Rd5 {[%emt 0:02:07]} 36. Nb7 {[%emt 0:01:14]} Bc8 {[%emt 0:01:11]} 37. Bf2 {[%emt 0:00:19]} Ra8 {[%emt 0:00:16]} 38. Rc5 {[%emt 0:00:34]} Be6 {[%emt 0:02:34]} 39. Rxd5 {[%emt 0:00:49]} Bxd5 {[%emt 0:00:01]} 40. Rc2 {[%emt 0:00:27]} Ra6 {[%emt 0:02:23]} 41. Nd8 {[%emt 0:06:07]} Ra8 {[%emt 0:00:29]} 42. c7 {[%emt 0:00:42]} Rc8 {[%emt 0:00:08]} 43. Bb6 {[%emt 0:04:35]} e4 {[%emt 0:01:04]} 44. Nc6 {[%emt 0:02:41]} Bxc6 {[%emt 0:00:25]} 45. Rxc6 {[%emt 0:00:06]} exf3 {[%emt 0:00:04]} 46. gxf3 {[%emt 0:02:50]} Ke8 {[%emt 0:03:02]} 47. Rxg6 {[%emt 0:00:34]} 1-0

[Event "Mitropa Cup Women 2024"]
[Site "Apolda"]
[Date "2024.02.16"]
[Round "2.7"]
[White "Ivan-Gal, Hanna Krisztina"]
[Black "Lhotska, Anna"]
[Result "0-1"]
[ECO "B51"]
[WhiteElo "2191"]
[BlackElo "2053"]
[Annotator "NA RC"]
[PlyCount "86"]
[EventDate "2024.02.15"]
[EventType "team-tourn"]
[EventCountry "GER"]
[SourceTitle "playchess.com"]
[Source "ChessBase"]
[SourceQuality "1"]
[WhiteTeam "Hungary"]
[BlackTeam "Czech Republic"]
[WhiteTeamCountry "HUN"]
[BlackTeamCountry "CZE"]
[TimeControl "40/5400+30:1800+30"]

1. e4 {[%emt 0:00:02]} c5 {[%emt 0:00:26]} 2. Nf3 {[%emt 0:00:08]} d6 {[%emt 0:00:06]} 3. Bb5+ {[%emt 0:00:05]} Nd7 {[%emt 0:00:06]} 4. d4 {[%emt 0:00:21]} cxd4 {[%emt 0:00:07]} 5. Qxd4 {[%emt 0:00:12]} a6 {[%emt 0:00:08]} 6. Bxd7+ {[%emt 0:00:12]} Bxd7 {[%emt 0:00:29]} 7. c4 {[%emt 0:00:15]} Rc8 {[%emt 0:00:34]} 8. Nc3 {[%emt 0:00:31]} e5 {[%emt 0:02:07]} 9. Qd3 {[%emt 0:00:15]} Qc7 {[%emt 0:00:32]} 10. Nd2 {[%emt 0:00:20]} Be6 {[%emt 0:09:32]} 11. b3 {[%emt 0:04:15]} b5 {[%emt 0:00:30]} 12. Nd5 {[%emt 0:00:12]} Qc6 {[%emt 0:00:25]} 13. O-O {[%emt 0:02:28]} Ne7 {[%emt 0:00:49]} 14. Rd1 {[%emt 0:08:49]} Bxd5 {[%emt 0:07:29]} 15. exd5 {[%emt 0:00:44]} Qd7 {[%emt 0:02:03]} 16. a4 {[%emt 0:07:52]} Ng6 {[%emt 0:04:01]} 17. Ne4 {[%emt 0:17:13]} bxc4 {[%emt 0:01:06]} 18. bxc4 {[%emt 0:01:17]} Be7 {[%emt 0:14:48]} 19. c5 {[%emt 0:06:58]} O-O {[%emt 0:02:03]} 20. c6 {[%emt 0:04:04]} Qg4 {[%emt 0:00:29]} 21. f3 {[%emt 0:02:44]} Qh4 {[%emt 0:00:39]} 22. Ng3 {[%emt 0:06:22]} Bd8 {[%emt 0:09:34]} 23. a5 {[%emt 0:02:48]} Nf4 {[%emt 0:08:24]} 24. Qxa6 {[%emt 0:03:52]} Bf6 {[%emt 0:03:17]} 25. Ne4 {[%emt 0:03:17]} Be7 {[%emt 0:03:21]} 26. Be3 {[%emt 0:08:04]} f5 {[%emt 0:01:45]} 27. Bf2 {[%emt 0:01:10]} Qh6 {[%emt 0:01:01]} 28. Ng3 {[%emt 0:00:17]} Qg6 {[%emt 0:00:59]} 29. Qb7 {[%emt 0:04:06]} Bf6 {[%emt 0:05:50]} 30. Rab1 {[%emt 0:05:18]} h5 {[%emt 0:02:48]} 31. a6 {[%emt 0:04:57]} h4 {[%emt 0:00:47]} 32. a7 {[%emt 0:00:10]} hxg3 {[%emt 0:00:25]} 33. hxg3 {[%emt 0:00:41]} Ne2+ {[%emt 0:01:49]} 34. Kf1 {[%emt 0:00:07]} Nxg3+ {[%emt 0:00:12]} 35. Bxg3 {[%emt 0:00:08]} Qxg3 {[%emt 0:00:05]} 36. Qxc8 {[%emt 0:00:11]} Rxc8 {[%emt 0:00:11]} 37. Rb8 {[%emt 0:00:07]} Bh4 {[%emt 0:00:55]} 38. Rxc8+ {[%emt 0:00:10]} Kf7 {[%emt 0:00:56]} 39. Rc7+ {[%emt 0:00:34]} Kg6 {[%emt 0:02:20]} 40. Kg1 {[%emt 0:00:48]} Qf2+ {[%emt 0:08:17]} 41. Kh1 {[%emt 0:32:02]} Bg5 {[%emt 0:33:12]} 42. g3 {[%emt 0:00:00]} Qxg3 {[%emt 0:00:00]} 43. Rf1 {[%emt 0:00:00]} Qh3+ {[%emt 0:00:00]} 0-1